Cogmind - Beta 13 @@@ ROGUE MODE // 2024.03.21 @ 07:54:52 Player: ChromeKnight Result: Destroyed by D-53 Grenadier with Mini Grenade Launcher Performance ------------- Evolutions (0) 0 Regions Visited (4) 800 Robots Destroyed (8) 40 Value Destroyed (166) 166 Prototype IDs (0) 0 Alien Tech Used (0) 0 Bonus (0) 0 TOTAL SCORE: 1006 Bonus ------- None Cogmind --------- Core Integrity 0/250 Matter 188/300 Energy 125/125 System Corruption 4% Temperature Cool (0) Movement Core (250) Ox4 Location -9/Mines Parts ------- > --- POWER (1) -------- Light Ion Engine (fused) > --- PROPULSION (2) --- (None) > --- UTILITY (2) ------ Small Storage Unit Utility Shielding > --- WEAPON (2) ------- Assault Rifle Assault Rifle > --- INVENTORY (8) ---- Medium Storage Unit Weight Redist. System Experimental Sensor Array Improved Terrain Scanner Utility Shielding Bore Cannon Peak State ------------ > --- POWER ------------ Light Ion Engine > --- PROPULSION ------- Light Treads > --- UTILITY ---------- Small Storage Unit Utility Shielding > --- WEAPON ----------- Assault Rifle Assault Rifle > --- INVENTORY -------- Medium Storage Unit Weight Redist. System Experimental Sensor Array Improved Terrain Scanner Utility Shielding Bore Cannon [Rating: 8] Favorites ----------- Power Ion Engine Engine Ion Engine Propulsion Light Treads Treads Light Treads Utility Small Storage Unit Storage Small Storage Unit Protection Utility Shielding Weapon Assault Rifle Ballistic Gun Assault Rifle Build | -11 -10 -10 -10 -9 ------- Run | Yrd Mat Min Exi Min Slots Evolved . | . . . . . Power . | . . . . . Propulsion . | . . . . . Utility . | . . . . . Weapon . | . . . . . Parts Attached 12 | 6 4 2 . . Power 2 | 1 . 1 . . Engine 2 | 1 . 1 . . Core . | . . . . . Reactor . | . . . . . Propulsion 2 | 2 . . . . Treads 2 | 2 . . . . Leg . | . . . . . Wheel . | . . . . . Hover . | . . . . . Flight . | . . . . . Utility 3 | 1 2 . . . Device . | . . . . . Storage 2 | 1 1 . . . Processor . | . . . . . Hackware . | . . . . . Protection 1 | . 1 . . . Artifact . | . . . . . Weapon 5 | 2 2 1 . . Energy Gun . | . . . . . Energy Cannon . | . . . . . Ballistic Gun 5 | 2 2 1 . . Ballistic Cannon . | . . . . . Launcher . | . . . . . Special Weapon . | . . . . . Impact Weapon . | . . . . . Slashing Weapon . | . . . . . Piercing Weapon . | . . . . . Special Melee Weapon . | . . . . . Unidentified Prototypes . | . . . . . Parts Lost 5 | 2 2 . . 1 Power 1 | . 1 . . . Propulsion 2 | 1 . . . 1 Utility . | . . . . . Weapon 2 | 1 1 . . . Highest Loss Streak 2 | 2 2 . . 1 To Critical Strikes . | . . . . . Average Slot Usage (%) 80 | . 79 77 85 85 Engine 12 | . 11 10 14 14 Treads 14 | . 14 14 14 14 Storage 14 | . 14 14 14 14 Protection 13 | . 13 14 14 14 Ballistic Gun 26 | . 25 24 28 28 Naked Turns . | . . . . . Heaviest Build 15 | 13 15 13 13 13 Greatest Support 40 | 40 20 20 20 20 Greatest Overweight (x) . | . . . . . Average Overweight (x) . | . . . . . Largest Inventory Capacity 8 | 8 8 8 8 8 Average Capacity 7 | 7 8 8 8 8 Most Carried 6 | 3 6 6 6 6 Average Carried 3 | 2 3 5 6 6 Final Capacity 8 | 8 8 8 8 8 Final Carried 6 | 3 6 6 6 6 Class Distribution -------------------- 100% | Mutant Dominant Class ---------------- Mutant | -10/Materials Mutant | -10/Mines Mutant | -10/Exiles Mutant | -9/Mines Resources | -11 -10 -10 -10 -9 ----------- Run | Yrd Mat Min Exi Min Matter Collected 433 | 340 62 . . 31 Remotely . | . . . . . Salvage Created 316 | 170 146 . . . Parts 15 | 6 9 . . . Haulers Intercepted 1 | . 1 . . . Recyclers Shooed 3 | 1 2 . . . Parts Field Recycled . | . . . . . Retrieved Matter . | . . . . . Parts Self-Destructed . | . . . . . Prevented . | . . . . . Kills | -11 -10 -10 -10 -9 ------- Run | Yrd Mat Min Exi Min Combat Hostiles Destroyed 3 | 1 2 . . . Guns 2 | 1 1 . . . AOE 1 | . 1 . . . Classes Destroyed 7 | 4 3 . . . Worker 1 | 1 . . . . Tunneler 1 | 1 . . . . Hauler 1 | . 1 . . . Recycler 1 | 1 . . . . Operator 1 | . 1 . . . Grunt 2 | . 2 . . . Demolisher 1 | 1 . . . . Best Kill Streak 2 | 2 2 . . . Combat Bots Only 2 | 1 2 . . . Max Kills in Single Turn 1 | 1 1 . . . Gunslinging . | . . . . . Exploded 1 | . 1 . . . Melee . | . . . . . Uniques/NPCs Destroyed . | . . . . . Combat | -11 -10 -10 -10 -9 -------- Run | Yrd Mat Min Exi Min Hostile Shots Fired 52 | 31 19 . . 2 Missed 14 | 10 4 . . . Damage Taken 1084 | 534 473 . . 77 Core 250 | 40 201 . . 9 Absorbed by Shields . | . . . . . Redirected to Shielding 8 | . 8 . . . Core Remaining (%) 84 | 84 . . . . Volleys Fired 43 | 26 17 . . . Largest 2 | 2 2 . . . Hottest 40 | 40 40 . . . Shots Fired 76 | 52 23 . 1 . Gun 76 | 52 23 . 1 . Cannon . | . . . . . Launcher . | . . . . . Special . | . . . . . Kinetic 76 | 52 23 . 1 . Thermal . | . . . . . Explosive . | . . . . . Electromagnetic . | . . . . . Robot Hit Streak 12 | 8 12 . . . Robot Miss Streak 3 | 3 2 . . . Penetration Max . | . . . . . Secondary Targets . | . . . . . Shots Hit Robots 51 | 32 19 . . . Core Hits 19 | 11 8 . . . Critical Kills . | . . . . . Critical Parts Destroyed 1 | 1 . . . . Critical Strikes 1 | 1 . . . . Destroy 1 | 1 . . . . Melee Attacks . | . . . . . Impact . | . . . . . Slashing . | . . . . . Piercing . | . . . . . Sneak Attacks . | . . . . . Combat Hostiles . | . . . . . Follow-up Attacks . | . . . . . Damage Inflicted 595 | 347 248 . . . Guns 595 | 347 248 . . . Cannons . | . . . . . Explosions . | . . . . . Melee . | . . . . . Ramming . | . . . . . Kinetic 595 | 347 248 . . . Thermal . | . . . . . Explosive . | . . . . . Electromagnetic . | . . . . . Impact . | . . . . . Slashing . | . . . . . Piercing . | . . . . . Highest Corruption 4 | 3 4 4 4 4 Average Corruption 3 | 3 3 4 4 4 Corruption Purged . | . . . . . Corruption Blocked . | . . . . . Effects 41 | 1 19 5 15 1 Message Errors 11 | . 5 2 3 1 Matter Fused 11 | 1 5 1 4 . Heat Flow Errors 4 | . 2 2 . . Energy Discharges 6 | . 5 . 1 . Parts Fused 1 | . . . 1 . Data Loss (minor) 5 | . 2 . 3 . Data Loss (major) 2 | . . . 2 . Misfires 1 | . . . 1 . Overload Shots . | . . . . . Overflow Damage . | . . . . . Projectiles . | . . . . . Explosions . | . . . . . Melee . | . . . . . Knockbacks . | . . . . . Impact . | . . . . . Kinetic . | . . . . . Secondary . | . . . . . Self-Inflicted Damage . | . . . . . Shots . | . . . . . Rammed . | . . . . . Targets Rammed . | . . . . . Kicked . | . . . . . Crushed . | . . . . . Highest Temperature 261 | . 194 261 . . Average Temperature 119 | . 125 111 . . Received Heat Transfer 123 | . 123 . . . Effects 1 | . . 1 . . Interference 1 | . . 1 . . Siege Activations . | . . . . . Robots Corrupted . | . . . . . Combat Hostiles . | . . . . . Parts Fried . | . . . . . Impact Corruptions . | . . . . . Robots Melted . | . . . . . Combat Hostiles . | . . . . . Parts Melted . | . . . . . Heat Transferred . | . . . . . Parts Sabotaged . | . . . . . Parts Stolen . | . . . . . Parts Stripped . | . . . . . Power Chain Reactions . | . . . . . Alert | -11 -10 -10 -10 -9 ------- Run | Yrd Mat Min Exi Min Peak Influence 45 | 45 31 8 . . Initial 8 | . . 8 . . Average 4 | 4 4 8 . . Maximum Alert Level . | . . . . . Low Security (%) 100 | 100 100 100 . 100 Level 1 . | . . . . . Level 2 . | . . . . . Level 3 . | . . . . . Level 4 . | . . . . . Level 5 . | . . . . . High Security . | . . . . . Max Security . | . . . . . Squads Dispatched 1 | . 1 . . . Investigation 1 | . 1 . . . Extermination . | . . . . . Reinforcement . | . . . . . Assault . | . . . . . Garrison . | . . . . . Intercept . | . . . . . Searches Triggered . | . . . . . Construction Impeded . | . . . . . Haulers Reinforced . | . . . . . Active Scanning Responses . | . . . . . Cargo Convoy Interrupts . | . . . . . Stealth | -11 -10 -10 -10 -9 --------- Run | Yrd Mat Min Exi Min Distress Signals . | . . . . . Communications Jammed . | . . . . . Distress Signals . | . . . . . Times Spotted 22 | 14 6 . . 2 Peak Tracking Total 13 | 13 4 . . 2 Tactical Retreats 1 | 1 . . . . Traps | -11 -10 -10 -10 -9 ------- Run | Yrd Mat Min Exi Min Traps Triggered 1 | . 1 . . . Indirectly . | . . . . . Trap Hack Attempts . | . . . . . Triggered . | . . . . . Disarmed . | . . . . . Reprogrammed . | . . . . . Reused . | . . . . . Traps Extracted . | . . . . . Installed . | . . . . . Triggered . | . . . . . Machines | -11 -10 -10 -10 -9 ---------- Run | Yrd Mat Min Exi Min Machines Disabled . | . . . . . Max in Single Turn . | . . . . . Machines Repaired . | . . . . . Machines Dismantled . | . . . . . Machines Sabotaged . | . . . . . Overloaded Fab Kills . | . . . . . Hacking | -11 -10 -10 -10 -9 --------- Run | Yrd Mat Min Exi Min Machines Accessed 1 | . 1 . . . Terminals 1 | . 1 . . . Fabricators . | . . . . . Repair Stations . | . . . . . Recycling Units . | . . . . . Scanalyzers . | . . . . . Garrison Access . | . . . . . Total Hacks 2 | . 2 . . . Successful . | . . . . . Failed 2 | . 2 . . . Catastrophic 1 | . 1 . . . Database Lockouts . | . . . . . Manual . | . . . . . Terminals 2 | . 2 . . . Fabricators . | . . . . . Repair Stations . | . . . . . Recycling Units . | . . . . . Scanalyzers . | . . . . . Garrison Access . | . . . . . Terminal Hacks . | . . . . . Fabricator Hacks . | . . . . . Repair Station Hacks . | . . . . . Recycling Unit Hacks . | . . . . . Scanalyzer . | . . . . . Garrison Access Hacks . | . . . . . Unauthorized Hacks . | . . . . . Terminals . | . . . . . Fabricators . | . . . . . Repair Stations . | . . . . . Recycling Units . | . . . . . Scanalyzers . | . . . . . Garrison Access . | . . . . . Data Cores Recovered 1 | . 1 . . . Used 1 | . 1 . . . Hacking Detections 1 | . 1 . . . Full Trace Events 1 | . 1 . . . Feedback Events . | . . . . . Feedback Blocked . | . . . . . Robot Schematics Acquired . | . . . . . Robots Built . | . . . . . Authchips . | . . . . . Time . | . . . . . Total Robot Build Rating . | . . . . . Part Schematics Acquired . | . . . . . Parts Built . | . . . . . Authchips . | . . . . . Time . | . . . . . Total Part Build Rating . | . . . . . Parts Repaired . | . . . . . Time . | . . . . . Parts Recycled . | . . . . . Recycled Matter . | . . . . . Retrieved Matter . | . . . . . Retrieved Components . | . . . . . Parts Scanalyzed . | . . . . . Part Schematics Acquired . | . . . . . Parts Damaged . | . . . . . Bothacking | -11 -10 -10 -10 -9 ------------ Run | Yrd Mat Min Exi Min Used RIF Installer . | . . . . . Robots Hacked . | . . . . . Non-combat . | . . . . . Combat . | . . . . . Robot Hacks Applied . | . . . . . Relay Couplers Released . | . . . . . Fabnet Peak Effective % . | . . . . . Robots Rewired . | . . . . . Allies Hacked . | . . . . . Hacks Repelled . | . . . . . Allies | -11 -10 -10 -10 -9 -------- Run | Yrd Mat Min Exi Min Total Allies 3 | . . 3 . . Largest Group 3 | . . 3 3 3 Highest-Rated Group 40 | . . 40 40 40 Highest-Rated Ally 16 | . . 16 16 16 Total Orders . | . . . . . Ally Attacks 1 | . . . . 1 Total Damage . | . . . . . Kills . | . . . . . Allies Corrupted . | . . . . . Allies Melted . | . . . . . Intel | -11 -10 -10 -10 -9 ------- Run | Yrd Mat Min Exi Min Robot Analysis Total . | . . . . . Derelict Logs Recovered . | . . . . . Drone Launches . | . . . . . Drone Recoveries . | . . . . . Exploration | -11 -10 -10 -10 -9 ------------- Run | Yrd Mat Min Exi Min Turns Passed 3050 | 1218 907 344 533 48 Spaces Moved 847 | 94 192 199 334 28 Core 12 | 12 . . . . Treads 835 | 82 192 199 334 28 Legs . | . . . . . Wheels . | . . . . . Hover . | . . . . . Flight . | . . . . . Fastest Speed 50 | 50 160 160 160 160 Average Speed 158 | 145 160 160 160 160 Slowest Speed 160 | 160 160 160 160 160 Overloaded Moves . | . . . . . Propulsion Burnouts . | . . . . . Robots Hopped . | . . . . . Cave-ins Triggered . | . . . . . Exploration Rate (%) 39 | 13 40 50 85 8 Regions Visited 4 Branch Regions 3 Pre-discovered Areas . | . . . . . Known Exits Taken . | . . . . . Unknown Exits Taken 4 | 1 1 1 1 . Scrap Searched 1 | . . . . 1 Spaces Dug . | . . . . . Terrain Destroyed . | . . . . . Melee . | . . . . . Projectile . | . . . . . AOE . | . . . . . Terrain Rammed . | . . . . . Walls Destroyed . | . . . . . Machines Disabled . | . . . . . Actions | -11 -10 -10 -10 -9 --------- Run | Yrd Mat Min Exi Min Total 2482 | 1125 768 225 333 31 Wait 1575 | 997 552 23 . 3 Move 843 | 93 191 198 333 28 Hop . | . . . . . Pick Up 8 | 3 3 2 . . Fast Attach 8 | 6 2 . . . Attach 3 | . 1 2 . . Detach . | . . . . . Swap 1 | . 1 . . . Drop 1 | . 1 . . . Fire 43 | 26 17 . . . Melee . | . . . . . Ram . | . . . . . Kick . | . . . . . Crush . | . . . . . Escape Stasis . | . . . . . Rewire . | . . . . . Trap . | . . . . . Miscellaneous . | . . . . . Route ------- -11/Scrapyard -10/Materials -10/Mines (discovered 2 exits: [*Mat] / [*Exi]) -10/Exiles -9/Mines History --------- Turn | Location | Event 5 | -11/Scrapyard | Discovered new exit (range 15) 1154 | -11/Scrapyard | Assembled infested the area 1219 | -11/Scrapyard | Entered Materials 1220 | -10/Materials | Build established: Mutant 1989 | -10/Materials | Core integrity fell below 50% 1989 | -10/Materials | Core integrity fell below 20% 2008 | -10/Materials | Discovered new exit (range 12) 2126 | -10/Materials | Entered Mines 2138 | -10/Mines | Discovered new exit (range 9) 2190 | -10/Mines | Met a Derelict bent on vengeance 2271 | -10/Mines | Assisted by bots powering up and referring to "LRC-V3" 2345 | -10/Mines | Found a damaged Exp. Sensor Array with a note attached 2348 | -10/Mines | Found Prototype Device 2436 | -10/Mines | A weapon hastily lodged in a ceiling crevice suddenly fell to the ground 2461 | -10/Mines | Deemed a non-threat by the Exiles lab entrance 2463 | -10/Mines | Discovered new exit (range 5) 2470 | -10/Mines | Entered Exiles 2470 | -10/Exiles | Found Exiles lab abandoned 2470 | -10/Exiles | Accompanied by 3 allies 2986 | -10/Exiles | Discovered new exit (range 14) 3003 | -10/Exiles | Entered Mines 3003 | -9/Mines | Accompanied by 3 allies 3028 | -9/Mines | Assembled infested the area 3051 | -9/Mines | Destroyed by D-53 Grenadier with Mini Grenade Launcher Last Messages --------------- 02998_ System corrupted: Matter fused (-6). LOCATION=UNKNOWN GOAL=ESCAPE 03004_ K-01 Serf collects debris. 03013_ 4EEJ9FWOBDWE%NQ51L6D 03021_ K-01 Serf collects debris. 03028_ ALERT: Infestation in the mines, dispatching Demolisher response squad. 03030_ K-01 Serf collects debris. 03034_ Searching scrap... 03034_ Found Lrg. Storage Unit. 03034_ Found 31 Matter. 03034_ K-01 Serf collects debris. 03035_ Acquired 31 matter. 03037_ K-01 Serf collects debris. 03047_ C-30 ARC bursts open, deploying its payload. 03047_ D-53 Grenadier unfolds itself. 03048_ K-01 Serf collects debris. 03050_ Lgt. Treads destroyed. Map ----- +----------------------------------------------------+ | ?????????????????????????????????? | | ?????????????????????????????????? | | ?????????????????????????????????? | | ?????????????????????????????????? | | ?????????????????????????????????? | | ?????????????????????????????????? | | ?????????????????????????????????? | | ?????????????????????????????????? | | ?????????????????????????????????? | | ?????????????????????????????????? | | ?????????????????????????????????? | | ?????????????????????????????????? | | ?????????????????????????????????? | | ?????????????????????????????????? | | ?????????????????????????????????? | | ?????????????????????????????????? | | ????????#####????????????????????? | | ???????## ##???????????????????? | | ???????# #???????????????????? | | ??????## #???????????????????? | | ??????# ! ##???????????????????? | | ??????# ####### #???????????? | | ??#???## #???????????? | | ??# ??## #???????????? | | ?## ## g ###########??????????? | | ?# # @ #### #??????????? | | ?# g #??????????? | | ??# g ### #??????????? | | ??## #####?# #??????????? | | ???# #?????# #??????????? | | ???## #?????# #??????????? | | ????# dd ?????########??????????? | | ???? ???????????????????????? | | ???# ??????????????????????? | | ???###### ??????????????????????? | | ?????????#%??????????????????????? | | ?????????? #?????????????????????? | | ?????????? #?????????????????????? | | ?????????? #?????????????????????? | | ??????????? ?????????????????????? | | ??????????? ?????????????????????? | | ?????????????????????????????????? | | ?????????????????????????????????? | | ?????????????????????????????????? | | ?????????????????????????????????? | | ?????????????????????????????????? | | ?????????????????????????????????? | | ?????????????????????????????????? | | ?????????????????????????????????? | | ?????????????????????????????????? | +----------------------------------------------------+ Best States ------------- Heat Dissipation 25 Energy Generation 10 Energy Capacity 250 Matter Stores 300 Matter Capacity 300 Sight Range 16 Terrain Scan Density 10 Utility Shielding 33 Evasion (%) 40 Recoil Reduction 2 Item Schematics ----------------- None Robot Schematics ------------------ None Fabricated ------------ Nothing Alien Tech Used ----------------- None Achievements -------------- None Challenges ------------ None Game ------ Seed ArmageddonMetafiberSlayer Manual? 0 Play Time 00:05:25 Cumulative 442.6 hours Start 2024.03.21 @ 07:49:41 End 2024.03.21 @ 07:54:52 Sessions 1 Manual Loads 0 Difficulty Rogue Special Mode None Game No. 770 Rogue 615 Adventurer 148 Explorer 7 Win Type - Total 19 Types 16/0/2/1/0/0/0/0/0 Lore% 77 Gallery% 88 Achievement% 73 Wizard Run 0 Options --------- Layout 1 ASCII 0 Keyboard 0 Movement Numpad Keybinds 0 Fullscreen 2 Font 24/Smallcaps Map View 50x35 Zoom Use 0% Tactical HUD 1 Map Filters NONE Filters NONE Steam 1 RUN: 11adb602-08ca-4b5f-816d-6bee5c7fe809